bitfinex-derivatives/quotes_ETHF0:USTF0_20220103
["timestamp","ask_amount","ask_price","bid_price","bid_amount"]
[1641168610080,2.33689294,3810.0,3809.6,2.00479]
[1641168610282,0.83689294,3810.0,3809.6,2.00479]
[1641168612385,0.86322148,3810.9,3809.7,1.31150981]
[1641168612583,0.86322148,3810.9,3809.7,1.98730981]
[1641168612782,1.31182466,3811.0,3810.8,2.00479]
[1641168613081,0.86322148,3811.2,3810.9,0.229991]
[1641168613282,0.86322148,3811.2,3810.8,2.63409]
[1641168613682,1.17073178,3811.5,3810.8,2.63409]
[1641168613883,1.5,3811.8,3810.8,2.63409]
[1641168614084,0.93622988,3811.4,3810.8,2.63409]
[1641168614483,0.80807288,3811.4,3810.8,2.63409]
[1641168619090,1.5,3811.2,3810.8,2.63409]
[1641168619291,0.93622988,3811.4,3810.8,2.00479]
[1641168619491,1.5,3811.2,3810.8,2.00479]
[1641168619691,1.5,3810.9,3810.8,2.00479]
[1641168619896,1.5,3811.1,3810.8,2.234781]
[1641168620294,0.5255,3811.3,3810.8,2.234781]
[1641168620694,2.0255,3811.3,3810.8,2.234781]
[1641168621495,0.5255,3811.3,3810.8,2.234781]
[1641168621693,0.80807288,3811.4,3810.8,2.234781]
[1641168622594,0.86322148,3812.1,3810.8,2.234781]
[1641168622794,0.86322148,3812.1,3811.7,2.00479]
[1641168622994,0.86322148,3812.1,3811.7,2.65859]
[1641168623695,0.86322148,3812.2,3811.7,2.65859]
[1641168624297,0.86322148,3812.9,3811.7,2.65859]
[1641168624898,1.5,3812.1,3811.7,2.65859]
[1641168625296,0.86322148,3812.9,3811.7,2.65859]
[1641168625497,1.21182512,3812.8,3811.7,2.65859]
[1641168625696,1.5,3812.7,3811.7,2.65859]
[1641168626095,1.21182512,3812.8,3811.7,2.65859]
[1641168626496,1.5,3812.7,3811.7,2.65859]
[1641168626697,1.5,3811.8,3811.7,2.00479]
[1641168626997,2.0401,3811.8,3811.7,2.00479]
[1641168627197,2.0401,3811.8,3811.7,2.234781]
[1641168628597,0.5401,3811.8,3811.7,2.234781]
[1641168628797,1.21721097,3811.9,3811.7,0.229991]
[1641168629700,2.00479,3812.2,3811.7,0.229991]
[1641168630101,1.5,3811.8,3811.7,0.229991]
[1641168630899,1.30220848,3811.9,3811.7,0.229991]
[1641168631602,1.5,3811.8,3811.7,0.229991]
[1641168632301,1.30220848,3811.9,3811.7,0.229991]
[1641168632502,1.5,3811.8,3811.7,0.229991]
[1641168632906,1.30220848,3811.9,3811.7,2.234781]
[1641168633105,1.5,3812.5,3811.7,2.234781]
[1641168633305,0.128157,3812.3,3811.7,2.234781]
[1641168633507,0.128157,3812.3,3811.7,2.00479]
[1641168633705,1.5,3811.8,3811.7,2.00479]
[1641168633904,1.5,3811.8,3811.7,2.234781]
[1641168634505,1.5,3812.2,3811.7,2.234781]
[1641168634711,1.5,3811.8,3811.7,2.00479]
[1641168635114,1.5,3811.8,3811.7,2.234781]
[1641168636013,1.5,3811.8,3811.7,2.00479]
[1641168637114,1.5,3811.8,3811.7,2.234781]
[1641168638016,1.16941936,3811.9,3811.7,2.234781]
[1641168638214,1.5,3812.0,3811.7,2.234781]
[1641168638413,1.5,3812.2,3811.7,2.234781]
[1641168639016,1.5,3812.2,3812.1,2.00479]
[1641168646226,3.0,3812.2,3810.8,1.18727492]
[1641168646426,1.5,3811.2,3810.8,1.18727492]
[1641168646626,1.5,3811.2,3810.6,1.18727492]
[1641168647229,1.5,3811.2,3811.1,2.00479]
[1641168647427,0.73733953,3811.3,3811.1,2.234781]
[1641168647827,2.23733953,3811.3,3811.1,2.234781]
[1641168648031,2.23733953,3811.3,3811.1,2.00479]
[1641168648227,1.5,3811.2,3811.1,2.00479]
[1641168648428,0.73733953,3811.3,3811.1,2.234781]
[1641168649529,1.5,3811.2,3811.1,2.00479]
[1641168649727,1.5,3811.2,3811.1,2.234781]
[1641168650328,2.199757,3811.2,3811.1,2.00479]
[1641168651132,2.0716,3811.2,3811.1,2.234781]
[1641168651929,1.5,3811.2,3811.1,2.234781]
[1641168652128,1.5,3811.8,3811.1,2.234781]
[1641168652329,2.00479,3812.0,3811.1,2.00479]
[1641168652330,1.5,3811.3,3811.1,2.00479]
[1641168652529,1.5,3811.3,3811.2,0.229991]
[1641168652728,2.00479,3812.0,3811.2,0.229991]
[1641168652930,1.26106056,3811.8,3811.2,0.229991]
[1641168653132,1.5,3811.5,3811.2,0.229991]
[1641168653333,1.5,3811.3,3811.2,0.229991]
[1641168654534,1.26106056,3811.8,3811.2,0.229991]
[1641168654736,1.5,3811.5,3811.2,0.229991]
[1641168655536,0.128157,3811.7,3811.2,0.229991]
[1641168655741,1.5,3811.5,3811.2,0.229991]
[1641168655938,1.5,3811.7,3811.2,0.229991]
[1641168656238,1.26106056,3811.8,3811.2,0.229991]
[1641168656438,1.5,3811.5,3811.2,0.229991]
[1641168656840,1.5,3811.7,3811.2,0.229991]
[1641168658140,1.38921756,3811.8,3811.2,0.229991]
[1641168658343,1.5,3811.3,3811.1,2.00479]
[1641168658942,0.128157,3811.8,3811.1,2.00479]
[1641168659343,1.5,3811.3,3811.1,2.00479]
[1641168659543,1.5,3811.3,3811.2,0.229991]
[1641168660344,0.128157,3811.8,3811.2,0.229991]
[1641168660545,1.5,3811.3,3811.2,0.229991]
[1641168662145,1.14610002,3811.8,3811.2,0.229991]
[1641168662346,1.5,3811.6,3811.2,0.229991]
[1641168663147,1.5,3811.6,3811.1,2.00479]
[1641168664550,1.01794302,3811.8,3811.1,2.00479]
[1641168664751,1.5,3811.7,3811.1,2.00479]
[1641168664952,1.5,3811.7,3811.1,2.127146]
[1641168665251,1.01794302,3811.8,3811.1,2.127146]
[1641168665451,2.00479,3812.0,3811.1,2.127146]
[1641168669159,1.5,3811.8,3811.1,2.127146]
[1641168670062,2.00479,3812.0,3811.1,2.127146]
[1641168670263,0.86322148,3811.8,3811.3,1.18727492]
[1641168670465,1.17073178,3812.0,3811.3,1.18727492]
[1641168670662,1.17073178,3812.0,3811.4,1.31092181]
[1641168670865,1.5,3811.9,3811.4,1.98802181]
[1641168671267,1.5,3811.5,3811.4,0.6771]
[1641168671868,1.5,3811.5,3811.2,0.09314582]
[1641168672066,0.128157,3811.8,3811.2,0.09314582]
[1641168672269,1.5,3811.3,3811.2,0.09314582]
[1641168672467,1.5,3811.3,3811.2,0.32313682]
[1641168672668,0.128157,3811.8,3811.2,0.32313682]
[1641168672870,1.5,3811.5,3811.2,0.32313682]
[1641168673270,1.5,3811.5,3811.4,2.00479]
[1641168674570,1.5,3811.5,3811.4,2.32792682]
[1641168674770,1.5,3811.5,3811.4,2.09793582]
[1641168676775,1.5,3811.5,3811.4,2.32792682]
[1641168677275,1.5,3811.5,3811.4,2.09793582]
[1641168679479,1.5,3811.5,3811.4,2.00479]
[1641168680380,1.5,3811.5,3810.4,1.78069831]
[1641168680580,1.5,3811.5,3810.5,1.78069831]
[1641168680780,2.45335066,3811.8,3810.5,1.78069831]
[1641168680984,1.5,3810.8,3810.5,1.78069831]
[1641168681180,1.5,3810.8,3810.6,0.229991]
[1641168681390,1.5,3810.8,3810.7,4.00958]
[1641168682083,1.5,3810.8,3810.7,4.1027347]
[1641168692097,2.2389,3810.8,3810.7,4.1027347]
[1641168692299,2.2389,3810.8,3810.2,1.78069831]
[1641168692497,1.5,3810.3,3810.2,1.78069831]
[1641168694299,1.5,3810.3,3810.0,2.46291443]
[1641168694499,1.5,3810.1,3810.0,2.46291443]
[1641168695501,1.5,3810.1,3810.0,2.00479]
[1641168696399,1.5,3810.1,3809.7,0.45812443]
[1641168696601,1.5,3809.8,3809.5,1.78069831]
[1641168696798,1.5,3809.6,3809.5,1.78069831]
[1641168698206,1.5,3809.6,3809.1,2.00479]
[1641168698404,1.5,3809.2,3809.1,2.00479]
[1641168698605,1.5,3809.2,3808.9,0.45812443]
[1641168698606,2.399857,3809.2,3808.9,0.45812443]
[1641168698804,1.5,3809.0,3808.9,0.45812443]
[1641168699403,2.64851453,3809.0,3808.9,0.45812443]
[1641168699604,4.65330453,3809.0,3808.9,0.45812443]
[1641168700407,4.65330453,3809.0,3807.9,0.45812443]
[1641168701005,1.5,3808.5,3807.9,0.45812443]
[1641168701206,1.5,3808.4,3807.9,0.45812443]
[1641168701405,3.15330453,3809.0,3807.9,0.45812443]
[1641168701605,1.5,3808.8,3807.9,0.45812443]
[1641168702105,3.15330453,3809.0,3807.9,0.45812443]
[1641168702306,1.5,3808.4,3807.9,0.45812443]
[1641168702506,3.15330453,3809.0,3807.9,0.45812443]
[1641168702707,1.5,3808.4,3807.9,0.45812443]
[1641168702906,1.5,3808.7,3807.9,0.45812443]
[1641168703107,1.5,3808.7,3807.8,2.00479]
[1641168703506,3.15330453,3809.0,3807.8,2.00479]
[1641168703706,1.5,3808.7,3807.8,2.00479]
[1641168704207,3.15330453,3809.0,3807.8,2.00479]
[1641168704409,1.5,3808.8,3807.8,2.00479]
[1641168704809,3.15330453,3809.0,3807.8,2.00479]
[1641168705611,1.5,3807.9,3807.8,2.00479]
[1641168705811,1.5,3808.7,3807.8,2.234781]
[1641168706310,0.128157,3808.6,3807.8,2.234781]
[1641168706511,1.5,3808.3,3807.8,2.234781]
[1641168707111,0.128157,3808.6,3807.8,2.234781]
[1641168707610,1.14079198,3808.5,3807.8,2.00479]
[1641168709014,1.5,3807.9,3807.8,2.00479]
[1641168712217,1.5,3807.9,3807.8,2.234781]
[1641168712516,1.5,3807.9,3807.8,2.00479]
[1641168713116,1.5,3807.9,3807.8,2.09801123]
[1641168713516,1.14079198,3808.5,3807.8,2.32800223]
[1641168713719,1.5,3808.4,3807.8,3.02630223]
[1641168714718,1.14079198,3808.5,3807.8,2.79631123]
[1641168714918,1.5,3808.4,3807.9,0.09322123]
[1641168717126,1.14079198,3808.5,3807.9,0.09322123]
[1641168717320,2.64079198,3808.5,3807.9,0.09322123]
[1641168717821,2.76894898,3808.5,3807.9,0.09322123]
[1641168719024,1.26894898,3808.5,3807.9,0.09322123]
[1641168719228,1.5,3808.0,3807.9,0.09322123]
[1641168719425,1.5,3808.0,3807.9,1.5105183]
[1641168720331,1.5,3808.0,3807.9,1.2805273]
[1641168720526,1.5,3808.0,3807.9,1.5105183]
[1641168720726,1.5,3808.0,3807.9,1.2805273]
[1641168721130,1.29358913,3808.0,3807.9,1.2805273]
[1641168721529,1.29358913,3808.0,3807.9,0.32321223]
[1641168721729,1.29358913,3808.0,3807.9,0.09322123]
[1641168722331,1.14079198,3808.5,3807.9,0.09322123]
[1641168722530,1.29358913,3808.0,3807.9,0.8374321]
[1641168722735,2.99840576,3809.0,3807.9,1.0674231]
[1641168723132,1.29358913,3808.4,3807.9,0.86101223]
[1641168723334,1.29358913,3808.4,3807.9,1.0674231]
[1641168723531,1.29358913,3808.4,3807.9,0.86101223]
[1641168723731,1.29358913,3808.4,3807.9,1.0674231]
[1641168723931,1.29358913,3808.4,3807.9,0.86101223]
[1641168724531,1.29358913,3808.4,3808.0,0.09322123]
[1641168725133,2.99840576,3809.0,3808.0,0.09322123]
[1641168725335,1.29358913,3808.4,3808.0,0.09322123]
[1641168725734,2.99840576,3809.0,3808.0,0.09322123]
[1641168725935,1.29358913,3808.6,3808.0,0.09322123]
[1641168726335,1.42174613,3808.6,3808.0,0.09322123]
[1641168726537,2.00479,3809.0,3808.5,0.20641087]
[1641168726736,2.00479,3809.0,3808.7,0.20641087]
[1641168726938,1.97939,3809.0,3808.8,0.229991]
[1641168727939,1.97939,3809.0,3808.8,0.43640187]
[1641168728138,2.00479,3809.6,3808.8,0.43640187]
[1641168728338,2.00479,3809.6,3809.2,0.20641087]
[1641168728540,0.87331435,3810.1,3809.5,0.20641087]
[1641168728740,0.87331435,3810.1,3809.5,0.7928]
[1641168728940,0.87331435,3810.1,3809.8,0.20641087]
[1641168729141,0.87331435,3810.1,3809.5,0.7928]
[1641168729142,0.87331435,3810.1,3809.9,0.229991]
[1641168729543,1.29358913,3810.0,3809.9,0.229991]
[1641168729943,1.29358913,3810.0,3809.9,2.234781]
[1641168730345,0.128157,3810.2,3809.9,2.234781]
[1641168730744,0.128157,3810.2,3809.9,2.00479]
[1641168730946,0.87331435,3810.1,3809.9,2.09797454]
[1641168731145,0.87331435,3810.1,3810.0,0.229991]
[1641168732146,0.87331435,3810.1,3810.0,0.32317554]
[1641168732348,0.87331435,3810.1,3810.0,0.09318454]
[1641168732750,0.55910446,3810.1,3810.0,0.32317554]
[1641168733151,1.85269359,3810.1,3810.0,0.32317554]
[1641168733349,1.85269359,3810.1,3810.0,0.09318454]
[1641168733949,1.29358913,3810.1,3810.0,0.09318454]
[1641168734150,2.16726702,3810.1,3810.0,0.09318454]
[1641168734550,2.16726702,3810.1,3810.0,0.32317554]
[1641168735050,2.16726702,3810.1,3810.0,0.09318454]
[1641168735250,2.16726702,3810.1,3810.0,0.32317554]
[1641168735452,2.16726702,3810.1,3810.0,0.09318454]
[1641168736653,1.85270395,3810.1,3810.0,0.09318454]
[1641168737655,3.02343573,3810.1,3809.9,1.19284678]
[1641168737854,3.02343573,3810.1,3809.9,1.42283778]
[1641168738054,3.02343573,3810.1,3809.9,1.19284678]
[1641168738855,0.55911482,3810.0,3809.9,1.19284678]
[1641168739556,1.7298466,3810.0,3809.8,1.19284678]
[1641168740056,1.7298466,3810.0,3809.9,0.229991]
[1641168740458,1.29358913,3810.1,3809.9,0.229991]
[1641168740459,2.46432091,3810.1,3809.9,1.42283778]
[1641168741557,1.29358913,3810.1,3810.0,1.28603132]
[1641168742459,1.46302844,3810.5,3810.0,0.09318454]
[1641168742460,1.17073178,3810.3,3810.0,0.09318454]
[1641168742658,1.29358913,3810.1,3810.0,0.09318454]
[1641168742958,1.17073178,3810.3,3810.0,0.09318454]
[1641168743361,0.87380925,3810.1,3810.0,0.09318454]
[1641168743560,0.87380925,3810.1,3810.0,0.32317554]
[1641168744061,2.16739838,3810.1,3810.0,0.32317554]
[1641168744261,1.29358913,3810.1,3810.0,0.32317554]
[1641168744660,2.16739838,3810.3,3810.0,0.32317554]
[1641168744861,0.87380925,3810.3,3810.0,0.32317554]
[1641168745460,1.29358913,3810.2,3810.0,0.32317554]
[1641168745861,1.29358913,3810.2,3810.0,0.09318454]
[1641168746061,1.29358913,3810.2,3810.1,0.09318454]
[1641168748565,0.87380925,3810.3,3810.1,0.09318454]
[1641168748765,3.71929361,3811.1,3810.2,1.87009054]
[1641168749065,2.75661757,3810.9,3810.2,1.66367967]
[1641168749264,1.46302844,3810.9,3810.2,0.352347]
[1641168750264,1.46302844,3810.9,3810.5,2.00479]
[1641168750665,2.00479,3811.1,3810.5,2.00479]
[1641168751266,1.29358913,3810.6,3810.5,2.00479]
[1641168751466,1.29358913,3810.6,3810.5,2.234781]
[1641168752166,2.63869,3811.1,3810.5,2.234781]
[1641168752567,1.29358913,3810.9,3810.5,2.234781]
[1641168752767,1.29358913,3810.8,3810.5,2.234781]
[1641168753168,1.29358913,3810.7,3810.5,2.234781]
[1641168753568,2.00479,3811.1,3810.5,2.234781]
[1641168753768,1.29358913,3810.7,3810.5,2.234781]
[1641168754168,2.00479,3811.1,3810.5,2.234781]
[1641168754469,1.29358913,3810.7,3810.5,2.234781]
[1641168754668,2.00479,3811.1,3810.5,2.234781]
[1641168754669,1.29358913,3811.0,3810.5,2.234781]
[1641168755368,2.00479,3811.1,3810.5,2.234781]
[1641168755769,1.29358913,3811.0,3810.5,2.234781]
[1641168755972,2.00479,3811.1,3810.5,2.234781]
[1641168756270,1.29358913,3810.6,3810.5,2.234781]
[1641168757073,1.29358913,3810.6,3810.5,3.78548831]
[1641168757475,1.80118913,3810.6,3810.5,3.78548831]
[1641168758379,1.80118913,3810.6,3810.5,2.00479]
[1641168760676,1.80118913,3810.6,3810.5,2.234781]
[1641168760879,1.80118913,3810.6,3810.5,2.00479]
[1641168761778,1.80118913,3810.6,3810.5,2.234781]
[1641168763182,1.80118913,3810.6,3810.5,2.00479]
[1641168763381,1.80118913,3810.6,3810.5,2.234781]
[1641168767188,1.80118913,3810.6,3810.5,2.39331981]
[1641168768589,1.80118913,3810.6,3810.5,2.16332881]
[1641168768790,1.80118913,3810.6,3810.5,2.39331981]
[1641168771894,1.80118913,3810.6,3810.5,3.58301999]
[1641168773094,1.80118913,3810.6,3810.5,2.39331981]
[1641168773394,1.80118913,3810.6,3810.5,2.16332881]
[1641168773795,1.07854595,3811.3,3810.5,2.39331981]
[1641168773796,1.29358913,3811.3,3810.5,2.39331981]
[1641168774000,1.29358913,3811.3,3810.6,0.122356]
[1641168774598,1.29358913,3811.3,3811.2,2.00479]
[1641168774799,1.29358913,3811.3,3811.2,2.234781]
[1641168775501,1.29358913,3811.3,3811.2,2.00479]
[1641168775701,30.0368,3811.8,3811.2,2.234781]
[1641168775901,1.16509792,3811.9,3811.2,2.234781]
[1641168776103,1.16509792,3812.0,3811.2,2.39331981]
[1641168776503,1.16509792,3812.0,3811.6,2.00479]
[1641168777102,2.00479,3812.4,3811.6,2.00479]
[1641168777103,1.72396284,3812.2,3811.6,2.00479]
[1641168777802,1.85211984,3812.2,3811.6,2.00479]
[1641168778002,0.55886492,3812.1,3811.6,2.00479]
[1641168781010,1.5,3811.7,3811.6,2.00479]
[1641168781207,1.5,3811.7,3811.3,1.18970018]
[1641168781408,0.55886492,3812.1,3811.3,1.18970018]
[1641168781409,1.5,3811.5,3811.3,1.18970018]
[1641168781611,0.128157,3811.4,3811.3,1.18970018]
[1641168783010,1.99236169,3811.4,3811.3,1.41969118]
[1641168783208,1.99236169,3811.4,3811.3,1.18970018]
[1641168783408,1.99236169,3811.4,3810.7,1.78069831]
[1641168783409,1.99236169,3811.4,3810.6,2.127146]
[1641168783609,1.99236169,3811.4,3810.6,2.00479]
[1641168784610,1.43349677,3811.4,3810.8,1.18970018]
[1641168785609,1.43349677,3811.4,3810.7,1.36163606]
[1641168788113,1.43349677,3811.4,3810.7,0.17193588]
[1641168789115,1.43349677,3811.4,3810.7,1.36163606]
[1641168791319,0.128157,3811.4,3810.7,1.36163606]
[1641168793419,1.628157,3811.4,3810.7,1.36163606]
[1641168794023,0.128157,3811.4,3810.7,1.36163606]
[1641168794423,0.128157,3811.4,3810.9,0.89225563]
[1641168794622,0.87054065,3811.3,3810.9,0.89225563]
[1641168796223,0.87054065,3811.2,3810.8,0.89225563]
[1641168797025,0.128157,3811.4,3811.0,0.89225563]
[1641168797026,0.99869765,3811.4,3811.0,0.89225563]
[1641168798524,0.87054065,3811.3,3810.9,0.89225563]
[1641168799527,0.87054065,3811.2,3810.8,0.89225563]
[1641168800527,0.87054065,3811.3,3810.8,0.89225563]
[1641168801327,0.128157,3811.4,3811.0,0.89225563]
[1641168802229,0.128157,3811.4,3810.7,1.36163606]
[1641168802230,0.87054065,3811.3,3810.9,0.89225563]
[1641168804129,1.5,3811.2,3810.9,0.89225563]
[1641168804328,1.5,3811.0,3810.8,0.89225563]
[1641168804530,2.37054065,3811.2,3810.8,0.89225563]
[1641168805127,0.74619912,3811.1,3810.8,0.89225563]
[1641168805729,1.5,3810.9,3810.8,0.89225563]
[1641168805930,1.5,3810.9,3810.6,0.89225563]
[1641168806831,1.5,3810.9,3810.3,1.18970018]
[1641168807030,0.87054065,3810.7,3810.6,1.18970018]
[1641168808231,0.87054065,3810.7,3810.5,1.18970018]
[1641168808431,0.128157,3810.6,3810.5,1.18970018]
[1641168808633,0.128157,3810.6,3810.5,1.41969118]
[1641168808832,0.128157,3810.6,3810.5,1.18970018]
[1641168810838,0.679357,3810.6,3810.5,1.18970018]
[1641168811639,1.23842426,3810.6,3810.5,0.89384712]
[1641168812444,1.23842426,3810.6,3810.3,0.18165408]
[1641168812641,1.5,3810.4,3808.9,32.8682]
[1641168813042,1.5,3810.4,3809.9,1.18953304]
[1641168813043,2.00479,3810.4,3809.9,1.18953304]
[1641168813243,3.50479,3810.4,3809.9,1.18953304]
[1641168813643,1.5,3810.3,3809.9,1.18953304]
[1641168814561,1.5,3810.3,3809.1,3.78548831]
[1641168817252,2.00479,3810.4,3809.1,3.78548831]
[1641168818753,2.00479,3810.4,3809.1,2.00479]
[1641168818955,3.50479,3810.4,3809.1,2.00479]
[1641168819855,1.5,3810.2,3809.1,2.00479]
[1641168820655,3.50479,3810.4,3809.1,2.00479]
[1641168820856,2.00479,3810.4,3809.1,2.00479]
[1641168821454,2.00479,3810.4,3809.1,2.63299]
[1641168821655,2.00479,3810.4,3809.2,1.31169216]
[1641168821856,0.128157,3810.6,3809.2,1.31169216]
[1641168822256,0.128157,3810.6,3809.2,2.81169216]
[1641168822660,0.128157,3810.6,3809.2,1.5]
[1641168822858,0.128157,3810.6,3809.4,1.31162506]
[1641168823157,0.128157,3810.6,3810.5,2.00479]
[1641168823557,1.15917957,3811.0,3810.5,2.234781]
[1641168823757,1.15917957,3811.0,3810.5,2.00479]
[1641168823957,1.28733657,3811.0,3810.5,2.00479]
[1641168825761,0.128157,3811.0,3810.5,2.00479]
[1641168828465,1.15917957,3810.9,3810.5,2.00479]
[1641168830365,1.15917957,3810.9,3809.8,1.18930549]
[1641168831564,1.15917957,3810.9,3810.5,2.00479]
[1641168832368,2.78733657,3811.0,3810.5,2.00479]
[1641168833264,0.86849169,3810.7,3810.5,2.00479]
[1641168835165,1.17878805,3810.6,3810.5,2.00479]
[1641168835365,1.88278805,3810.6,3810.5,2.00479]
[1641168836266,1.88278805,3810.6,3810.5,2.234781]
[1641168836566,1.88278805,3810.6,3810.5,2.00479]
[1641168836766,1.88278805,3810.6,3810.1,2.00479]
[1641168836967,2.44179637,3810.6,3810.1,2.00479]
[1641168837668,0.86916525,3810.5,3810.1,2.00479]
[1641168838470,0.86916525,3810.4,3810.1,2.00479]
[1641168839267,0.86916525,3810.5,3810.1,2.00479]
[1641168841074,0.86916525,3810.4,3810.1,2.00479]
[1641168842774,1.5,3810.3,3809.5,2.00479]
[1641168842972,0.128157,3810.2,3809.5,2.00479]
[1641168843775,0.93494141,3810.1,3809.5,2.00479]
[1641168843974,0.86916525,3810.0,3809.5,2.00479]
[1641168844975,1.5,3809.8,3809.5,2.00479]
[1641168845875,0.86916525,3809.9,3809.5,2.00479]
[1641168846478,0.86916525,3809.7,3809.5,2.00479]
[1641168846881,0.90191347,3809.6,3809.5,2.00479]
[1641168847876,1.62561347,3809.6,3809.5,2.00479]
[1641168848279,2.49477872,3809.6,3809.5,2.00479]
[1641168850181,1.62561347,3809.6,3809.5,2.00479]
[1641168851182,2.49477872,3809.6,3809.5,2.00479]
[1641168851681,3.99477872,3809.6,3809.5,2.00479]
[1641168851882,2.49477872,3809.6,3809.5,2.00479]
[1641168854285,2.49477872,3809.6,3809.2,2.00479]
[1641168854884,2.18475807,3809.6,3809.2,2.00479]
[1641168855587,1.62561347,3809.6,3809.2,2.00479]
[1641168855787,0.86666247,3809.5,3809.2,2.00479]
[1641168855988,0.86666247,3809.5,3808.7,32.4164]
[1641168856189,0.86666247,3809.5,3808.5,0.122356]
[1641168856489,0.86666247,3809.5,3809.0,2.00479]
[1641168857290,0.86666247,3809.5,3808.6,2.27692343]
[1641168857489,0.86666247,3809.5,3808.6,2.15456743]
[1641168858091,0.86666247,3809.5,3808.6,2.00479]
[1641168858392,2.00479,3809.2,3808.6,2.00479]
[1641168858893,2.00479,3809.2,3808.7,0.14977581]
[1641168859595,2.00479,3809.2,3808.6,2.00479]
[1641168859995,0.86666247,3809.5,3808.3,31.22836149]
[1641168860398,0.86666247,3809.5,3808.4,1.18930549]
[1641168860799,2.00479,3809.2,3808.4,1.18930549]
[1641168861497,2.00479,3809.2,3808.4,1.34217764]
[1641168862297,2.00479,3809.2,3808.4,0.15287215]
[1641168864105,0.86666247,3808.9,3808.4,0.15287215]
[1641168864304,0.86666247,3808.9,3808.4,2.51456379]
[1641168865105,0.86666247,3808.9,3808.4,0.73386548]
[1641168865807,0.86666247,3808.9,3808.5,0.15287215]
[1641168866808,0.86666247,3808.9,3808.3,3.78548831]
[1641168867110,1.15917957,3809.1,3808.3,3.78548831]
[1641168867307,2.00479,3809.2,3808.3,2.00479]
[1641168868709,2.00479,3809.2,3808.5,1.5]
[1641168868911,2.00479,3809.2,3808.3,3.50479]
[1641168869615,2.00479,3809.2,3808.3,2.00479]
[1641168870512,2.00479,3809.2,3808.4,0.15472578]
[1641168871914,2.00479,3809.2,3808.3,2.00479]
[1641168872815,0.86666247,3809.1,3808.4,0.15575712]
[1641168873014,0.86666247,3809.1,3808.6,1.78069831]
[1641168875417,0.86666247,3809.0,3808.6,1.78069831]
[1641168875619,0.86666247,3809.0,3808.4,1.65575712]
[1641168875620,0.86666247,3809.0,3808.5,1.78069831]
[1641168876420,0.86666247,3809.1,3808.5,1.93645543]
[1641168877521,0.86666247,3809.1,3809.0,1.5]
[1641168877823,2.00479,3809.2,3809.0,1.5]
[1641168877824,1.74497454,3809.9,3809.0,1.852347]
[1641168878021,1.74497454,3809.9,3809.2,1.5]
[1641168878820,1.74497454,3810.0,3809.6,2.00479]
[1641168879022,1.74497454,3810.0,3809.6,2.55479]
[1641168879925,0.55897223,3809.9,3809.7,0.15575712]
[1641168880123,0.55897223,3809.9,3809.8,0.229991]
[1641168880924,0.55897223,3810.4,3809.8,0.38574812]
[1641168881324,0.55897223,3810.4,3809.8,0.15575712]
[1641168881727,0.55897223,3810.4,3809.9,0.15575712]
[1641168882126,1.87097933,3810.4,3809.9,0.15575712]
[1641168882327,0.55897223,3810.4,3809.9,0.15575712]
[1641168882628,0.55897223,3810.4,3809.6,2.00479]
[1641168882828,1.74497454,3810.2,3809.6,2.00479]
[1641168883027,0.85450428,3810.1,3809.6,2.00479]
[1641168883728,3.15845105,3810.1,3809.6,2.00479]
[1641168884430,0.55897223,3810.0,3809.6,2.00479]
[1641168885533,0.55897223,3810.0,3809.7,0.19259656]
[1641168886832,0.55897223,3810.0,3808.9,0.58039505]
[1641168886833,2.00479,3809.8,3808.9,0.58039505]
[1641168887032,0.128157,3809.7,3808.9,0.58039505]
[1641168887735,0.97662701,3809.6,3808.9,0.58039505]
[1641168888333,0.97662701,3809.6,3808.8,1.78069831]
[1641168888533,1.44508452,3809.5,3808.8,1.78069831]
[1641168888735,1.44508452,3809.5,3808.4,1.90305431]
[1641168889035,2.00479,3809.1,3808.4,1.90305431]
[1641168889437,2.00479,3809.1,3808.9,1.19212535]
[1641168890637,2.00479,3809.1,3808.2,2.00479]
[1641168890638,2.00479,3809.1,3809.0,1.19212535]
[1641168891240,3.27603437,3809.1,3808.5,1.78069831]
[1641168891437,3.91413437,3809.1,3808.5,1.78069831]
[1641168892040,3.91413437,3809.1,3808.4,1.78069831]
[1641168892940,2.00479,3808.6,3808.4,1.78069831]
[1641168893140,0.128157,3808.5,3808.4,1.78069831]
[1641168893941,0.128157,3808.5,3808.4,2.01068931]
[1641168894143,0.128157,3808.5,3808.0,0.62923524]
[1641168895946,0.128157,3808.5,3807.8,2.00479]
[1641168896345,2.75794129,3808.6,3807.8,2.00479]
[1641168896545,0.128157,3808.4,3807.8,2.00479]
[1641168897851,0.86567776,3808.3,3807.8,2.00479]
[1641168898447,0.99383476,3808.4,3807.8,2.00479]
[1641168900751,0.86567776,3808.4,3808.2,1.5]
[1641168900950,0.86567776,3808.4,3808.3,0.229991]
[1641168902450,2.00479,3808.6,3808.3,0.229991]
[1641168903154,2.00479,3808.6,3808.3,2.01068931]
[1641168903351,2.00479,3808.6,3808.3,1.78069831]
[1641168903850,2.00479,3808.6,3808.4,0.229991]
[1641168904656,2.00479,3808.6,3808.5,0.122356]
[1641168904856,2.00479,3808.6,3808.4,0.753091]
[1641168905056,0.86567776,3809.0,3808.5,0.122356]
[1641168905659,0.86567776,3809.1,3808.5,0.122356]
[1641168906058,0.99383476,3809.1,3808.4,5.77457893]
[1641168906863,0.99383476,3809.1,3809.0,1.19206703]
[1641168907058,0.99383476,3809.1,3809.0,1.42205803]
[1641168907259,0.86567776,3809.1,3809.0,1.42205803]
[1641168907660,0.86567776,3809.1,3809.0,0.229991]
[1641168908662,0.86567776,3809.1,3809.0,0.41838251]
[1641168909765,1.154931,3809.4,3809.0,0.41838251]
[1641168909766,0.86567776,3809.2,3809.0,1.61044954]
[1641168909962,0.86567776,3809.2,3809.0,1.38045854]
[1641168910565,0.86567776,3809.1,3809.0,1.19206703]
[1641168910767,0.86567776,3809.1,3809.0,1.42205803]
[1641168910965,0.55909758,3809.3,3809.0,1.42205803]
[1641168910966,1.44508452,3809.7,3809.0,3.04441403]
[1641168911165,1.44508452,3809.7,3809.4,2.00479]
[1641168911366,1.44508452,3809.7,3809.4,2.83899]
[1641168911566,1.44508452,3809.7,3809.5,0.229991]